[Event "Titled Tuesday Blitz January 18 2022"]
[White "Ortega Amarelle, Mariano"]
[Black "Barria Zuniga, Daniel"]
[WhiteFideId "3504301"]
[BlackFideId "3400816"]
[WhiteElo "2389"]
[BlackElo "2414"]
[Result "0-1"]
[Round "07"]
[TimeControl "180+1"]
[Date "2022.01.18"]
[WhiteClock "0:00:03"]
[BlackClock "0:00:13"]

1. e4 {[%clk 0:03:00]}  c5 {[%clk 0:02:57]} 2. Nc3 {[%clk 0:02:54]}  Nc6 {[%clk 0:02:57]} 3. Nf3 {[%clk 0:02:51]}  e6 {[%clk 0:02:55]} 4. d4 {[%clk 0:02:48]}  cxd4 {[%clk 0:02:55]} 5. Nxd4 {[%clk 0:02:49]}  Nf6 {[%clk 0:02:55]} 6. Ndb5 {[%clk 0:02:47]}  a6 {[%clk 0:02:55]} 7. Nd6+ {[%clk 0:02:46]}  Bxd6 {[%clk 0:02:55]} 8. Qxd6 {[%clk 0:02:47]}  b5 {[%clk 0:02:56]} 9. a3 {[%clk 0:02:37]}  Qe7 {[%clk 0:02:51]} 10. Bf4 {[%clk 0:02:36]}  e5 {[%clk 0:02:51]} 11. Qxe7+ {[%clk 0:02:35]}  Kxe7 {[%clk 0:02:50]} 12. Bg5 {[%clk 0:02:35]}  Nd4 {[%clk 0:02:50]} 13. O-O-O {[%clk 0:02:08]}  Bb7 {[%clk 0:02:48]} 14. f3 {[%clk 0:02:07]}  d6 {[%clk 0:02:41]} 15. Kb1 {[%clk 0:02:05]}  Rac8 {[%clk 0:02:37]} 16. Be3 {[%clk 0:01:58]}  Ne6 {[%clk 0:02:36]} 17. Be2 {[%clk 0:01:57]}  h6 {[%clk 0:02:34]} 18. Rd2 {[%clk 0:01:56]}  Rhd8 {[%clk 0:02:29]} 19. Rhd1 {[%clk 0:01:55]}  g5 {[%clk 0:02:29]} 20. Bf1 {[%clk 0:01:33]}  Rd7 {[%clk 0:02:17]} 21. a4 {[%clk 0:01:14]}  b4 {[%clk 0:02:03]} 22. Na2 {[%clk 0:01:13]}  a5 {[%clk 0:01:55]} 23. Bb6 {[%clk 0:01:02]}  d5 {[%clk 0:01:33]} 24. exd5 {[%clk 0:00:45]}  Rxd5 {[%clk 0:01:33]} 25. Rxd5 {[%clk 0:00:36]}  Nxd5 {[%clk 0:01:34]} 26. Bxa5 {[%clk 0:00:36]}  Ra8 {[%clk 0:01:30]} 27. Bxb4+ {[%clk 0:00:32]}  Nxb4 {[%clk 0:01:28]} 28. Nxb4 {[%clk 0:00:33]}  Rxa4 {[%clk 0:01:28]} 29. Nd5+ {[%clk 0:00:30]}  Kf8 {[%clk 0:01:12]} 30. Nc3 {[%clk 0:00:18]}  Rf4 {[%clk 0:01:07]} 31. Rd7 {[%clk 0:00:15]}  Bc6 {[%clk 0:00:41]} 32. Rd6 {[%clk 0:00:15]}  Be8 {[%clk 0:00:40]} 33. Be2 {[%clk 0:00:10]}  Nd4 {[%clk 0:00:38]} 34. Bd1 {[%clk 0:00:10]}  h5 {[%clk 0:00:30]} 35. Ne2 {[%clk 0:00:08]}  Nxe2 {[%clk 0:00:29]} 36. Bxe2 {[%clk 0:00:09]}  g4 {[%clk 0:00:28]} 37. Rh6 {[%clk 0:00:07]}  f6 {[%clk 0:00:22]} 38. Rh8+ {[%clk 0:00:06]}  Ke7 {[%clk 0:00:22]} 39. Kc1 {[%clk 0:00:05]}  e4 {[%clk 0:00:18]} 40. fxg4 {[%clk 0:00:03]}  hxg4 {[%clk 0:00:17]} 41. Kd2 {[%clk 0:00:03]}  Rf2 {[%clk 0:00:17]} 42. Ke3 {[%clk 0:00:03]}  Rxg2 {[%clk 0:00:16]} 43. c4 {[%clk 0:00:03]}  f5 {[%clk 0:00:13]} 0-1


[Site "https://www.chess.com"]

[Event "Titled Tuesday Blitz January 18 2022"]
[White "Pakleza, Zbigniew"]
[Black "Ambartsumova, Karina"]
[WhiteFideId "1119290"]
[BlackFideId "4166299"]
[WhiteElo "2467"]
[BlackElo "2262"]
[Result "1-0"]
[Round "07"]
[TimeControl "180+1"]
[Date "2022.01.18"]
[WhiteClock "0:00:26"]
[BlackClock "0:00:03"]

1. d4 {[%clk 0:03:00]}  Nf6 {[%clk 0:02:59]} 2. Nf3 {[%clk 0:03:00]}  g6 {[%clk 0:02:58]} 3. Bf4 {[%clk 0:03:01]}  Bg7 {[%clk 0:02:56]} 4. e3 {[%clk 0:03:01]}  O-O {[%clk 0:02:55]} 5. Be2 {[%clk 0:03:02]}  d6 {[%clk 0:02:56]} 6. h3 {[%clk 0:03:02]}  Nc6 {[%clk 0:02:56]} 7. O-O {[%clk 0:03:01]}  Nd7 {[%clk 0:02:56]} 8. Bh2 {[%clk 0:03:02]}  e5 {[%clk 0:02:57]} 9. c3 {[%clk 0:03:03]}  Qe7 {[%clk 0:02:44]} 10. b4 {[%clk 0:03:03]}  a6 {[%clk 0:02:38]} 11. Nbd2 {[%clk 0:02:53]}  f5 {[%clk 0:02:32]} 12. Rc1 {[%clk 0:02:44]}  e4 {[%clk 0:02:21]} 13. Ne1 {[%clk 0:02:43]}  g5 {[%clk 0:02:21]} 14. Qb3+ {[%clk 0:02:18]}  Kh8 {[%clk 0:02:20]} 15. Nc2 {[%clk 0:02:19]}  Nf6 {[%clk 0:02:18]} 16. c4 {[%clk 0:02:10]}  g4 {[%clk 0:02:00]} 17. hxg4 {[%clk 0:01:59]}  fxg4 {[%clk 0:02:00]} 18. b5 {[%clk 0:01:42]}  Nd8 {[%clk 0:01:51]} 19. a4 {[%clk 0:01:27]}  Nf7 {[%clk 0:01:48]} 20. Bf4 {[%clk 0:01:21]}  h5 {[%clk 0:01:33]} 21. g3 {[%clk 0:01:20]}  Nh7 {[%clk 0:01:29]} 22. Kg2 {[%clk 0:01:12]}  Nhg5 {[%clk 0:01:07]} 23. Rh1 {[%clk 0:01:12]}  Nh3 {[%clk 0:01:07]} 24. Qb4 {[%clk 0:01:03]}  a5 {[%clk 0:01:01]} 25. Qa3 {[%clk 0:01:01]}  Nfg5 {[%clk 0:00:50]} 26. b6 {[%clk 0:01:01]}  Nf3 {[%clk 0:00:38]} 27. Rcd1 {[%clk 0:01:00]}  Rf6 {[%clk 0:00:14]} 28. bxc7 {[%clk 0:00:57]}  Bf5 {[%clk 0:00:13]} 29. Nb1 {[%clk 0:00:45]}  Qxc7 {[%clk 0:00:13]} 30. Nc3 {[%clk 0:00:46]}  Re8 {[%clk 0:00:12]} 31. Nd5 {[%clk 0:00:46]}  Qf7 {[%clk 0:00:12]} 32. Nxf6 {[%clk 0:00:45]}  Qxf6 {[%clk 0:00:11]} 33. Qxd6 {[%clk 0:00:45]}  Qf7 {[%clk 0:00:09]} 34. Rb1 {[%clk 0:00:37]}  h4 {[%clk 0:00:04]} 35. Qd5 {[%clk 0:00:36]}  Be6 {[%clk 0:00:03]} 36. Qxb7 {[%clk 0:00:34]}  Qg6 {[%clk 0:00:02]} 37. Rb6 {[%clk 0:00:29]}  Nxf4+ {[%clk 0:00:03]} 38. exf4 {[%clk 0:00:28]}  h3+ {[%clk 0:00:03]} 39. Kf1 {[%clk 0:00:26]} 1-0


[Site "https://www.chess.com"]

[Event "Titled Tuesday Blitz January 18 2022"]
[White "Perez Ponsa, Federico"]
[Black "Kadam, Om Manish"]
[WhiteFideId "117927"]
[BlackFideId "45076294"]
[WhiteElo "2901"]
[BlackElo "2574"]
[Result "0-1"]
[Round "07"]
[TimeControl "180+1"]
[Date "2022.01.18"]
[WhiteClock "0:00:02"]
[BlackClock "0:00:31"]

1. d4 {[%clk 0:03:00]}  Nf6 {[%clk 0:02:59]} 2. c4 {[%clk 0:02:50]}  g6 {[%clk 0:03:00]} 3. Nc3 {[%clk 0:02:50]}  d5 {[%clk 0:03:00]} 4. cxd5 {[%clk 0:02:44]}  Nxd5 {[%clk 0:03:01]} 5. e4 {[%clk 0:02:44]}  Nxc3 {[%clk 0:03:01]} 6. bxc3 {[%clk 0:02:45]}  Bg7 {[%clk 0:03:02]} 7. Nf3 {[%clk 0:02:45]}  c5 {[%clk 0:03:02]} 8. Bb5+ {[%clk 0:02:46]}  Nc6 {[%clk 0:03:02]} 9. d5 {[%clk 0:02:46]}  Qa5 {[%clk 0:02:57]} 10. Rb1 {[%clk 0:02:39]}  a6 {[%clk 0:02:58]} 11. Ba4 {[%clk 0:02:39]}  b5 {[%clk 0:02:49]} 12. dxc6 {[%clk 0:02:13]}  bxa4 {[%clk 0:02:48]} 13. O-O {[%clk 0:02:12]}  O-O {[%clk 0:02:47]} 14. Be3 {[%clk 0:01:56]}  Rd8 {[%clk 0:02:39]} 15. Qc1 {[%clk 0:01:54]}  Be6 {[%clk 0:02:36]} 16. Rb7 {[%clk 0:01:50]}  Rdc8 {[%clk 0:02:31]} 17. c4 {[%clk 0:01:12]}  Rxc6 {[%clk 0:02:22]} 18. Rxe7 {[%clk 0:01:11]}  Qd8 {[%clk 0:02:14]} 19. Rb7 {[%clk 0:01:07]}  Qd3 {[%clk 0:02:12]} 20. Bh6 {[%clk 0:00:51]}  Qxc4 {[%clk 0:02:06]} 21. Qf4 {[%clk 0:00:36]}  Qc3 {[%clk 0:01:39]} 22. e5 {[%clk 0:00:09]}  Qc4 {[%clk 0:01:30]} 23. Qg5 {[%clk 0:00:08]}  Qg4 {[%clk 0:01:28]} 24. Qe3 {[%clk 0:00:04]}  Rd8 {[%clk 0:01:22]} 25. h3 {[%clk 0:00:04]}  Qf5 {[%clk 0:01:12]} 26. Bxg7 {[%clk 0:00:03]}  Kxg7 {[%clk 0:01:13]} 27. g4 {[%clk 0:00:03]}  Qd3 {[%clk 0:01:12]} 28. Qf4 {[%clk 0:00:03]}  Bd5 {[%clk 0:00:49]} 29. Ng5 {[%clk 0:00:02]}  Rf8 {[%clk 0:00:47]} 30. Re1 {[%clk 0:00:01]}  h6 {[%clk 0:00:45]} 31. Ne4 {[%clk 0:00:01]}  Bxe4 {[%clk 0:00:45]} 32. Rxe4 {[%clk 0:00:02]}  Qd5 {[%clk 0:00:34]} 33. Re3 {[%clk 0:00:02]}  Re6 {[%clk 0:00:33]} 34. Kh2 {[%clk 0:00:02]}  Qxb7 {[%clk 0:00:31]} 0-1


[Site "https://www.chess.com"]

[Event "Titled Tuesday Blitz January 18 2022"]
[White "Prohorov, Olexandr"]
[Black "Kukhmazov, Arsen"]
[WhiteFideId "14105578"]
[BlackFideId "24108260"]
[WhiteElo "1993"]
[BlackElo "2487"]
[Result "0-1"]
[Round "07"]
[TimeControl "180+1"]
[Date "2022.01.18"]
[WhiteClock "0:00:22"]
[BlackClock "0:00:06"]

1. Nf3 {[%clk 0:03:00]}  d5 {[%clk 0:02:56]} 2. d4 {[%clk 0:03:00]}  Nf6 {[%clk 0:02:56]} 3. c4 {[%clk 0:03:00]}  c6 {[%clk 0:02:56]} 4. Nc3 {[%clk 0:03:00]}  dxc4 {[%clk 0:02:56]} 5. a4 {[%clk 0:02:59]}  Bf5 {[%clk 0:02:56]} 6. Nh4 {[%clk 0:03:00]}  e6 {[%clk 0:02:51]} 7. Nxf5 {[%clk 0:02:57]}  exf5 {[%clk 0:02:52]} 8. e3 {[%clk 0:02:57]}  Bb4 {[%clk 0:02:48]} 9. Bxc4 {[%clk 0:02:57]}  O-O {[%clk 0:02:48]} 10. O-O {[%clk 0:02:56]}  Nbd7 {[%clk 0:02:48]} 11. Bd3 {[%clk 0:02:46]}  g6 {[%clk 0:02:47]} 12. Qc2 {[%clk 0:02:42]}  a5 {[%clk 0:02:46]} 13. Na2 {[%clk 0:02:37]}  Bd6 {[%clk 0:02:45]} 14. b3 {[%clk 0:02:36]}  Qe7 {[%clk 0:02:41]} 15. Bb2 {[%clk 0:02:36]}  Rae8 {[%clk 0:02:34]} 16. Rae1 {[%clk 0:02:35]}  Nb6 {[%clk 0:02:23]} 17. Bc3 {[%clk 0:02:28]}  Ra8 {[%clk 0:02:23]} 18. f3 {[%clk 0:02:18]}  Nbd5 {[%clk 0:02:23]} 19. Bd2 {[%clk 0:02:17]}  Qc7 {[%clk 0:01:31]} 20. g3 {[%clk 0:01:58]}  Bxg3 {[%clk 0:00:31]} 21. hxg3 {[%clk 0:01:57]}  Qxg3+ {[%clk 0:00:32]} 22. Kh1 {[%clk 0:01:57]}  Qh3+ {[%clk 0:00:32]} 23. Kg1 {[%clk 0:01:57]}  Nh5 {[%clk 0:00:33]} 24. Rf2 {[%clk 0:01:51]}  Rae8 {[%clk 0:00:33]} 25. Bf1 {[%clk 0:01:35]}  Qg3+ {[%clk 0:00:27]} 26. Bg2 {[%clk 0:01:36]}  f4 {[%clk 0:00:19]} 27. e4 {[%clk 0:01:36]}  Ne3 {[%clk 0:00:19]} 28. Bxe3 {[%clk 0:01:36]}  fxe3 {[%clk 0:00:20]} 29. Rxe3 {[%clk 0:01:35]}  Nf4 {[%clk 0:00:21]} 30. Kf1 {[%clk 0:01:33]}  Rd8 {[%clk 0:00:19]} 31. Qc4 {[%clk 0:01:29]}  Rd7 {[%clk 0:00:14]} 32. Nc3 {[%clk 0:01:04]}  Rfd8 {[%clk 0:00:15]} 33. d5 {[%clk 0:01:03]}  cxd5 {[%clk 0:00:15]} 34. Nxd5 {[%clk 0:01:00]}  Nxd5 {[%clk 0:00:15]} 35. exd5 {[%clk 0:01:01]}  Rxd5 {[%clk 0:00:16]} 36. Re8+ {[%clk 0:00:59]}  Rxe8 {[%clk 0:00:11]} 37. Qxd5 {[%clk 0:01:00]}  Rc8 {[%clk 0:00:12]} 38. Qd2 {[%clk 0:00:57]}  h5 {[%clk 0:00:10]} 39. Re2 {[%clk 0:00:55]}  h4 {[%clk 0:00:10]} 40. Qe1 {[%clk 0:00:50]}  Qg5 {[%clk 0:00:07]} 41. Re8+ {[%clk 0:00:49]}  Rxe8 {[%clk 0:00:08]} 42. Qxe8+ {[%clk 0:00:50]}  Kg7 {[%clk 0:00:09]} 43. Qd7 {[%clk 0:00:47]}  Qc1+ {[%clk 0:00:09]} 44. Kf2 {[%clk 0:00:48]}  Qb2+ {[%clk 0:00:08]} 45. Kg1 {[%clk 0:00:48]}  Qxb3 {[%clk 0:00:08]} 46. Kh2 {[%clk 0:00:46]}  Qb4 {[%clk 0:00:07]} 47. Qc7 {[%clk 0:00:42]}  Qxa4 {[%clk 0:00:06]} 48. Qxb7 {[%clk 0:00:41]}  Qf4+ {[%clk 0:00:03]} 49. Kg1 {[%clk 0:00:42]}  a4 {[%clk 0:00:04]} 50. Qb2+ {[%clk 0:00:40]}  Kh7 {[%clk 0:00:04]} 51. Qa1 {[%clk 0:00:31]}  Qg3 {[%clk 0:00:04]} 52. Kh1 {[%clk 0:00:29]}  h3 {[%clk 0:00:05]} 53. Bxh3 {[%clk 0:00:26]}  Qxh3+ {[%clk 0:00:05]} 54. Kg1 {[%clk 0:00:26]}  Qg3+ {[%clk 0:00:06]} 55. Kh1 {[%clk 0:00:26]}  Qxf3+ {[%clk 0:00:07]} 56. Kg1 {[%clk 0:00:27]}  a3 {[%clk 0:00:08]} 57. Kh2 {[%clk 0:00:25]}  Qf4+ {[%clk 0:00:08]} 58. Kg2 {[%clk 0:00:25]}  Qe4+ {[%clk 0:00:08]} 59. Kg3 {[%clk 0:00:25]}  Qd3+ {[%clk 0:00:06]} 60. Kg2 {[%clk 0:00:24]}  Qc2+ {[%clk 0:00:05]} 61. Kg3 {[%clk 0:00:25]}  Qb2 {[%clk 0:00:06]} 62. Qh1+ {[%clk 0:00:22]}  Kg7 {[%clk 0:00:06]} 63. Qd5 {[%clk 0:00:22]}  a2 {[%clk 0:00:06]} 0-1


[Site "https://www.chess.com"]

[Event "Titled Tuesday Blitz January 18 2022"]
[White "Rustemov, Alexander"]
[Black "Ozer, Omer Faruk"]
[WhiteFideId "4119002"]
[BlackFideId "6354564"]
[WhiteElo "2876"]
[BlackElo "2050"]
[Result "1-0"]
[Round "07"]
[TimeControl "180+1"]
[Date "2022.01.18"]
[WhiteClock "0:00:09"]
[BlackClock "0:00:02"]

1. d4 {[%clk 0:03:00]}  Nf6 {[%clk 0:02:59]} 2. c4 {[%clk 0:03:01]}  e6 {[%clk 0:02:59]} 3. Nf3 {[%clk 0:03:01]}  Bb4+ {[%clk 0:02:56]} 4. Bd2 {[%clk 0:03:01]}  c5 {[%clk 0:02:56]} 5. Bxb4 {[%clk 0:03:00]}  cxb4 {[%clk 0:02:57]} 6. g3 {[%clk 0:03:01]}  O-O {[%clk 0:02:56]} 7. Bg2 {[%clk 0:03:01]}  d6 {[%clk 0:02:53]} 8. O-O {[%clk 0:03:00]}  a5 {[%clk 0:02:53]} 9. a3 {[%clk 0:02:59]}  Na6 {[%clk 0:02:52]} 10. Qd3 {[%clk 0:02:58]}  Qe7 {[%clk 0:02:48]} 11. Nbd2 {[%clk 0:02:58]}  e5 {[%clk 0:02:47]} 12. e4 {[%clk 0:02:58]}  Bg4 {[%clk 0:02:44]} 13. Rfe1 {[%clk 0:02:49]}  Rfd8 {[%clk 0:02:39]} 14. h3 {[%clk 0:02:49]}  Bh5 {[%clk 0:02:36]} 15. Nh4 {[%clk 0:02:45]}  Bg6 {[%clk 0:02:33]} 16. f4 {[%clk 0:02:39]}  exf4 {[%clk 0:02:29]} 17. gxf4 {[%clk 0:02:35]}  Nh5 {[%clk 0:02:28]} 18. Nxg6 {[%clk 0:02:29]}  hxg6 {[%clk 0:02:25]} 19. Qe3 {[%clk 0:02:27]}  Re8 {[%clk 0:02:14]} 20. e5 {[%clk 0:02:24]}  Rad8 {[%clk 0:01:57]} 21. Ne4 {[%clk 0:02:23]}  Qh4 {[%clk 0:01:55]} 22. Rf1 {[%clk 0:02:16]}  f5 {[%clk 0:01:50]} 23. Ng5 {[%clk 0:02:09]}  dxe5 {[%clk 0:01:50]} 24. dxe5 {[%clk 0:02:06]}  bxa3 {[%clk 0:01:32]} 25. Rxa3 {[%clk 0:02:00]}  Nb4 {[%clk 0:01:26]} 26. Rxa5 {[%clk 0:01:36]}  Rd3 {[%clk 0:01:24]} 27. Qf2 {[%clk 0:01:34]}  Rg3 {[%clk 0:01:15]} 28. Ra3 {[%clk 0:01:31]}  Rd8 {[%clk 0:00:53]} 29. Rxg3 {[%clk 0:01:27]}  Nxg3 {[%clk 0:00:54]} 30. e6 {[%clk 0:01:11]}  Nd3 {[%clk 0:00:53]} 31. e7 {[%clk 0:01:06]}  Re8 {[%clk 0:00:53]} 32. Qe3 {[%clk 0:00:53]}  Nxf1 {[%clk 0:00:46]} 33. Qxd3 {[%clk 0:00:42]}  Qxf4 {[%clk 0:00:39]} 34. Qd5+ {[%clk 0:00:42]}  Kh8 {[%clk 0:00:39]} 35. Qf7 {[%clk 0:00:31]}  Qe3+ {[%clk 0:00:12]} 36. Kxf1 {[%clk 0:00:30]}  Qxe7 {[%clk 0:00:11]} 37. Qxe7 {[%clk 0:00:28]}  Rxe7 {[%clk 0:00:12]} 38. Kf2 {[%clk 0:00:24]}  Rc7 {[%clk 0:00:10]} 39. Bd5 {[%clk 0:00:20]}  b5 {[%clk 0:00:10]} 40. b3 {[%clk 0:00:20]}  bxc4 {[%clk 0:00:10]} 41. bxc4 {[%clk 0:00:20]}  Ra7 {[%clk 0:00:10]} 42. h4 {[%clk 0:00:19]}  Ra3 {[%clk 0:00:10]} 43. Nf3 {[%clk 0:00:13]}  Kh7 {[%clk 0:00:09]} 44. Kg3 {[%clk 0:00:13]}  Kh6 {[%clk 0:00:09]} 45. Kf4 {[%clk 0:00:13]}  Ra1 {[%clk 0:00:09]} 46. Ke5 {[%clk 0:00:09]}  Kh5 {[%clk 0:00:05]} 47. c5 {[%clk 0:00:09]}  Kg4 {[%clk 0:00:05]} 48. c6 {[%clk 0:00:09]}  Rc1 {[%clk 0:00:05]} 49. Kd6 {[%clk 0:00:10]}  f4 {[%clk 0:00:03]} 50. c7 {[%clk 0:00:10]}  g5 {[%clk 0:00:02]} 51. hxg5 {[%clk 0:00:09]} 1-0


[Site "https://www.chess.com"]

[Event "Titled Tuesday Blitz January 18 2022"]
[White "Sadhwani, Raunak"]
[Black "Oparin, Grigoriy"]
[WhiteFideId "35093487"]
[BlackFideId "24125890"]
[WhiteElo "3014"]
[BlackElo "2954"]
[Result "0-1"]
[Round "07"]
[TimeControl "180+1"]
[Date "2022.01.18"]
[WhiteClock "0:00:10"]
[BlackClock "0:00:56"]

1. e4 {[%clk 0:02:58]}  c5 {[%clk 0:03:00]} 2. Nf3 {[%clk 0:02:57]}  d6 {[%clk 0:03:01]} 3. Bb5+ {[%clk 0:02:58]}  Bd7 {[%clk 0:03:00]} 4. Bxd7+ {[%clk 0:02:55]}  Nxd7 {[%clk 0:03:01]} 5. O-O {[%clk 0:02:52]}  Ngf6 {[%clk 0:03:01]} 6. Qe2 {[%clk 0:02:52]}  e6 {[%clk 0:03:01]} 7. b3 {[%clk 0:02:52]}  Be7 {[%clk 0:02:59]} 8. Bb2 {[%clk 0:02:52]}  O-O {[%clk 0:02:58]} 9. d3 {[%clk 0:02:44]}  d5 {[%clk 0:02:53]} 10. Nbd2 {[%clk 0:02:43]}  b5 {[%clk 0:02:51]} 11. a4 {[%clk 0:02:43]}  a6 {[%clk 0:02:51]} 12. exd5 {[%clk 0:02:41]}  Nxd5 {[%clk 0:02:50]} 13. Rfe1 {[%clk 0:02:32]}  Bf6 {[%clk 0:02:48]} 14. Bxf6 {[%clk 0:02:30]}  Qxf6 {[%clk 0:02:48]} 15. Ne4 {[%clk 0:02:29]}  Qe7 {[%clk 0:02:48]} 16. Qd2 {[%clk 0:02:29]}  h6 {[%clk 0:02:47]} 17. Qa5 {[%clk 0:02:26]}  b4 {[%clk 0:02:38]} 18. d4 {[%clk 0:02:15]}  Rfc8 {[%clk 0:02:33]} 19. c4 {[%clk 0:01:50]}  bxc3 {[%clk 0:02:23]} 20. Nxc3 {[%clk 0:01:50]}  Nb4 {[%clk 0:02:23]} 21. d5 {[%clk 0:01:41]}  Nc2 {[%clk 0:02:16]} 22. dxe6 {[%clk 0:01:40]}  fxe6 {[%clk 0:02:17]} 23. Rad1 {[%clk 0:01:30]}  Nxe1 {[%clk 0:02:16]} 24. Rxe1 {[%clk 0:01:31]}  Nf6 {[%clk 0:02:10]} 25. Nd2 {[%clk 0:01:16]}  Qd8 {[%clk 0:02:05]} 26. Nc4 {[%clk 0:01:15]}  Qxa5 {[%clk 0:01:52]} 27. Nxa5 {[%clk 0:01:15]}  Rd8 {[%clk 0:01:53]} 28. g3 {[%clk 0:01:06]}  Rd3 {[%clk 0:01:51]} 29. Ne2 {[%clk 0:01:06]}  Nd5 {[%clk 0:01:50]} 30. Rc1 {[%clk 0:01:04]}  Rc8 {[%clk 0:01:42]} 31. Rc2 {[%clk 0:01:00]}  Nb4 {[%clk 0:01:35]} 32. Rc4 {[%clk 0:01:00]}  Rd2 {[%clk 0:01:31]} 33. Re4 {[%clk 0:01:01]}  Nc6 {[%clk 0:01:17]} 34. Nc4 {[%clk 0:00:59]}  Rd1+ {[%clk 0:01:17]} 35. Kg2 {[%clk 0:01:00]}  Nd4 {[%clk 0:01:17]} 36. Nxd4 {[%clk 0:00:53]}  cxd4 {[%clk 0:01:18]} 37. Rxe6 {[%clk 0:00:53]}  Rd8 {[%clk 0:01:16]} 38. Kf3 {[%clk 0:00:22]}  d3 {[%clk 0:01:15]} 39. Rd6 {[%clk 0:00:19]}  Rxd6 {[%clk 0:01:09]} 40. Nxd6 {[%clk 0:00:20]}  Rb1 {[%clk 0:01:06]} 41. Ke3 {[%clk 0:00:19]}  Rxb3 {[%clk 0:01:06]} 42. Ne4 {[%clk 0:00:19]}  Ra3 {[%clk 0:01:04]} 43. Nc5 {[%clk 0:00:18]}  a5 {[%clk 0:01:04]} 44. f4 {[%clk 0:00:19]}  Kf7 {[%clk 0:01:04]} 45. g4 {[%clk 0:00:19]}  g5 {[%clk 0:01:03]} 46. f5 {[%clk 0:00:19]}  Kf6 {[%clk 0:01:01]} 47. Nd7+ {[%clk 0:00:15]}  Ke7 {[%clk 0:01:00]} 48. Nc5 {[%clk 0:00:16]}  Kd6 {[%clk 0:01:00]} 49. Ne4+ {[%clk 0:00:14]}  Ke5 {[%clk 0:00:58]} 50. Nc5 {[%clk 0:00:13]}  Kd5 {[%clk 0:00:58]} 51. Ne4 {[%clk 0:00:10]}  d2+ {[%clk 0:00:56]} 0-1


[Site "https://www.chess.com"]

[Event "Titled Tuesday Blitz January 18 2022"]
[White "Salimova, Nurgyul"]
[Black "Svane, Frederik"]
[WhiteFideId "2915138"]
[BlackFideId "12923044"]
[WhiteElo "2185"]
[BlackElo "2459"]
[Result "0-1"]
[Round "07"]
[TimeControl "180+1"]
[Date "2022.01.18"]
[WhiteClock "0:00:05"]
[BlackClock "0:00:07"]

1. d4 {[%clk 0:01:25]}  Nf6 {[%clk 0:02:59]} 2. Nc3 {[%clk 0:01:21]}  d5 {[%clk 0:02:58]} 3. Bf4 {[%clk 0:01:21]}  g6 {[%clk 0:02:58]} 4. e3 {[%clk 0:01:19]}  Bg7 {[%clk 0:02:58]} 5. h4 {[%clk 0:01:19]}  c6 {[%clk 0:02:58]} 6. Bd3 {[%clk 0:01:18]}  h5 {[%clk 0:02:52]} 7. Nh3 {[%clk 0:01:15]}  Qb6 {[%clk 0:02:47]} 8. Qd2 {[%clk 0:01:13]}  Qxb2 {[%clk 0:02:39]} 9. Rb1 {[%clk 0:01:13]}  Qa3 {[%clk 0:02:37]} 10. Ng5 {[%clk 0:01:12]}  Qa5 {[%clk 0:02:30]} 11. O-O {[%clk 0:01:08]}  O-O {[%clk 0:02:24]} 12. Be5 {[%clk 0:00:47]}  Nbd7 {[%clk 0:02:21]} 13. f4 {[%clk 0:00:47]}  e6 {[%clk 0:01:59]} 14. Rf2 {[%clk 0:00:42]}  Re8 {[%clk 0:01:52]} 15. Nxd5 {[%clk 0:00:36]}  Qxd2 {[%clk 0:01:47]} 16. Nxf6+ {[%clk 0:00:36]}  Bxf6 {[%clk 0:01:41]} 17. Rxd2 {[%clk 0:00:37]}  Be7 {[%clk 0:01:40]} 18. Nf3 {[%clk 0:00:23]}  b6 {[%clk 0:01:29]} 19. g4 {[%clk 0:00:18]}  hxg4 {[%clk 0:01:28]} 20. Nh2 {[%clk 0:00:18]}  Bb7 {[%clk 0:01:12]} 21. Nxg4 {[%clk 0:00:17]}  f6 {[%clk 0:01:13]} 22. Bxg6 {[%clk 0:00:10]}  fxe5 {[%clk 0:01:13]} 23. Bxe8 {[%clk 0:00:10]}  Rxe8 {[%clk 0:01:14]} 24. fxe5 {[%clk 0:00:07]}  Rf8 {[%clk 0:00:54]} 25. Rg2 {[%clk 0:00:05]}  Kh7 {[%clk 0:00:53]} 26. Rf1 {[%clk 0:00:04]}  c5 {[%clk 0:00:49]} 27. Rg3 {[%clk 0:00:04]}  Rxf1+ {[%clk 0:00:47]} 28. Kxf1 {[%clk 0:00:05]}  Be4 {[%clk 0:00:46]} 29. c3 {[%clk 0:00:05]}  b5 {[%clk 0:00:37]} 30. Nf2 {[%clk 0:00:05]}  Bg6 {[%clk 0:00:35]} 31. e4 {[%clk 0:00:05]}  a5 {[%clk 0:00:29]} 32. a3 {[%clk 0:00:05]}  b4 {[%clk 0:00:27]} 33. axb4 {[%clk 0:00:05]}  cxb4 {[%clk 0:00:26]} 34. cxb4 {[%clk 0:00:05]}  Bxb4 {[%clk 0:00:26]} 35. Ke2 {[%clk 0:00:04]}  a4 {[%clk 0:00:26]} 36. Kd3 {[%clk 0:00:04]}  a3 {[%clk 0:00:26]} 37. Rg1 {[%clk 0:00:04]}  Be7 {[%clk 0:00:22]} 38. Ra1 {[%clk 0:00:04]}  Kh6 {[%clk 0:00:20]} 39. Nd1 {[%clk 0:00:04]}  Kh5 {[%clk 0:00:19]} 40. Nc3 {[%clk 0:00:05]}  Kxh4 {[%clk 0:00:14]} 41. Nb5 {[%clk 0:00:04]}  Kg4 {[%clk 0:00:13]} 42. Rg1+ {[%clk 0:00:04]}  Kh5 {[%clk 0:00:14]} 43. Rh1+ {[%clk 0:00:03]}  Kg5 {[%clk 0:00:14]} 44. Rg1+ {[%clk 0:00:04]}  Kh6 {[%clk 0:00:15]} 45. Rh1+ {[%clk 0:00:04]}  Kg5 {[%clk 0:00:14]} 46. Rg1+ {[%clk 0:00:04]}  Kh6 {[%clk 0:00:12]} 47. Rh1+ {[%clk 0:00:03]}  Kg7 {[%clk 0:00:12]} 48. Ra1 {[%clk 0:00:03]}  Nf8 {[%clk 0:00:07]} 49. Nxa3 {[%clk 0:00:03]}  Nh7 {[%clk 0:00:08]} 50. Nc4 {[%clk 0:00:03]}  Ng5 {[%clk 0:00:08]} 51. Nd2 {[%clk 0:00:03]}  Bb4 {[%clk 0:00:08]} 52. Ra7+ {[%clk 0:00:04]}  Kh6 {[%clk 0:00:07]} 53. d5 {[%clk 0:00:04]}  exd5 {[%clk 0:00:07]} 54. Rb7 {[%clk 0:00:03]}  dxe4+ {[%clk 0:00:07]} 55. Ke3 {[%clk 0:00:03]}  Bc5+ {[%clk 0:00:07]} 56. Ke2 {[%clk 0:00:03]}  Bh5+ {[%clk 0:00:07]} 57. Ke1 {[%clk 0:00:04]}  e3 {[%clk 0:00:07]} 58. Nc4 {[%clk 0:00:04]}  Nf3+ {[%clk 0:00:07]} 59. Ke2 {[%clk 0:00:05]}  Nxe5+ {[%clk 0:00:08]} 60. Ke1 {[%clk 0:00:05]}  Nd3+ {[%clk 0:00:06]} 61. Kf1 {[%clk 0:00:04]}  e2+ {[%clk 0:00:07]} 62. Kg2 {[%clk 0:00:05]}  e1=Q {[%clk 0:00:07]} 0-1


[Site "https://www.chess.com"]